fUST/lending_fUST_20240707
["ID","MTS","AMOUNT","RATE_DAILY","PERIOD"]
[331377799,1720301450398,-500.0,0.00043835,120]
[331377800,1720301450408,-500.0,0.00043835,120]
[331377801,1720301450418,-500.0,0.00043835,120]
[331377802,1720301450428,-500.0,0.00043835,120]
[331377803,1720301450440,-500.0,0.00043835,120]
[331377804,1720301450450,-500.0,0.00043835,120]
[331377805,1720301450460,-500.0,0.00043835,2]
[331377806,1720301450473,-500.0,0.00043835,120]
[331377807,1720301450483,-500.0,0.00043835,120]
[331377808,1720301450493,-500.0,0.00043835,120]
[331377809,1720301450503,-500.0,0.00043835,120]
[331377810,1720301450513,-151.0,0.00043835,14]
[331377811,1720301450523,-151.0,0.00043835,14]
[331377812,1720301450532,-151.0,0.00043835,14]
[331377813,1720301450542,-574.1318985,0.00043835,120]
[331377814,1720301450552,-500.0,0.00043835,120]
[331377815,1720301450562,-500.0,0.00043835,120]
[331377816,1720301450572,-500.0,0.00043835,120]
[331377817,1720301450581,-543.31,0.00043835,120]
[331377818,1720301450591,-151.0,0.00043835,14]
[331377819,1720301450601,-500.0,0.00043835,20]
[331377820,1720301450611,-500.0,0.00043835,120]
[331377821,1720301450621,-500.0,0.00043835,120]
[331377822,1720301450631,-996.26,0.00043835,120]
[331377823,1720301450642,-422.27089431,0.00043835,120]
[331377824,1720301450651,-342.68734849,0.00043835,120]
[331377825,1720301450661,-531.29464767,0.00043835,120]
[331377826,1720301450672,-500.0,0.00043835,120]
[331377827,1720301450681,-551.26162426,0.00043835,120]
[331377828,1720301450691,-500.0,0.00043835,120]
[331377829,1720301450701,-500.0,0.00043835,120]
[331377830,1720301450712,-500.0,0.00043835,120]
[331377831,1720301450724,-500.0,0.00043835,120]
[331377832,1720301450735,-500.0,0.00043835,120]
[331377833,1720301450746,-500.0,0.00043835,120]
[331377834,1720301450756,-500.0,0.00043835,120]
[331377835,1720301450766,-151.0,0.00043835,14]
[331377836,1720301450777,-1392.41,0.00043835,120]
[331377837,1720301450787,-500.0,0.00043835,120]
[331377838,1720301450798,-500.0,0.00043835,120]
[331377839,1720301450808,-151.0,0.00043835,14]
[331377840,1720301450818,-192.05903,0.00043835,14]
[331377841,1720301450829,-500.0,0.00043835,120]
[331377842,1720301450839,-455.85254161,0.00043835,120]
[331377843,1720301450848,-511.73835764,0.00043835,120]
[331377844,1720301450859,-151.0,0.00043835,14]
[331377845,1720301450868,-151.0,0.00043835,14]
[331377846,1720301450887,-151.0,0.00043835,14]
[331377847,1720301450897,-500.0,0.00043835,120]
[331377848,1720301450908,-500.0,0.00043835,120]
[331377849,1720301450917,-910.21,0.00043835,120]
[331377850,1720301450930,-500.0,0.00043835,120]
[331377851,1720301450940,-500.0,0.00043835,120]
[331377852,1720301450950,-500.0,0.00043835,120]
[331377853,1720301450960,-529.04502706,0.00043835,120]
[331377854,1720301450970,-500.0,0.00043835,120]
[331377855,1720301450980,-558.77,0.00043835,120]
[331377856,1720301450990,-500.0,0.00043835,120]
[331377857,1720301451000,-500.0,0.00043835,120]
[331377858,1720301451010,-500.0,0.00043835,120]
[331377859,1720301451020,-500.0,0.00043835,120]
[331377860,1720301451030,-2000.0,0.00043835,60]
[331377861,1720301451040,-500.0,0.00043835,120]
[331377862,1720301451051,-1597.21,0.00043835,7]
[331377863,1720301451061,-500.0,0.00043835,120]
[331377864,1720301451070,-500.0,0.00043835,120]
[331377865,1720301451080,-151.0,0.00043835,14]
[331377866,1720301451090,-151.0,0.00043835,14]
[331377867,1720301451100,-500.0,0.00043835,120]
[331377868,1720301451110,-151.0,0.00043835,14]
[331377869,1720301451120,-500.0,0.00043835,120]
[331377870,1720301451130,-151.0,0.00043835,14]
[331377871,1720301451141,-500.0,0.00043835,120]
[331377872,1720301451151,-157.202612,0.00043835,14]
[331377873,1720301451161,-500.0,0.00043835,120]
[331377874,1720301451171,-500.0,0.00043835,120]
[331377875,1720301451312,-500.0,0.00043835,120]
[331377876,1720301451323,-500.0,0.00043835,120]
[331377877,1720301451334,-500.0,0.00043835,120]
[331377878,1720301451344,-504.1135425,0.00043835,120]
[331377879,1720301451354,-501.0474475,0.00043835,120]
[331377880,1720301451364,-500.0,0.00043835,120]
[331377881,1720301451374,-501.43352738,0.00043835,120]
[331377882,1720301451384,-500.0,0.00043835,120]
[331377883,1720301451395,-500.0,0.00043835,120]
[331377884,1720301451409,-500.0,0.00043835,120]
[331377885,1720301451419,-500.0,0.00043835,120]
[331377886,1720301451429,-1219.05,0.00043835,120]
[331377887,1720301451439,-587.55,0.00043835,120]
[331377888,1720301451449,-1003.85,0.00043835,120]
[331377889,1720301451459,-500.0,0.00043835,120]
[331377890,1720301451469,-500.0,0.00043835,120]
[331377891,1720301451479,-687.49,0.00043835,120]
[331377892,1720301451489,-504.35788494,0.00043835,120]
[331377893,1720301451501,-500.0,0.00043835,120]
[331377894,1720301451511,-807.37,0.00043835,120]
[331377895,1720301451520,-500.0,0.00043835,120]
[331377896,1720301451530,-1077.25,0.00043835,120]
[331377897,1720301451540,-500.0,0.00043835,120]
[331377898,1720301451550,-500.0,0.00043835,120]
[331377899,1720301451560,-500.0,0.00043835,120]
[331377900,1720301451570,-424.74929953,0.00043835,120]
[331377901,1720301451580,-500.0,0.00043835,120]
[331377902,1720301451590,-151.0,0.00043835,14]
[331377903,1720301451600,-500.0,0.00043835,120]
[331377904,1720301451610,-151.0,0.00043835,14]
[331377905,1720301451620,-524.0653462,0.00043835,120]
[331377906,1720301451630,-151.0,0.00043835,14]
[331377907,1720301451640,-151.0,0.00043835,14]
[331377908,1720301451651,-567.96,0.00043835,120]
[331377909,1720301451661,-453.01012758,0.00043835,120]
[331377910,1720301451671,-500.0,0.00043835,120]
[331377911,1720301451681,-500.0,0.00043835,120]
[331377912,1720301451691,-500.0,0.00043835,120]
[331377913,1720301451701,-474.15461902,0.00043835,120]
[331377914,1720301451711,-500.0,0.00043835,120]
[331377915,1720301451724,-500.0,0.00043835,120]
[331377916,1720301451734,-500.0,0.00043835,120]
[331377917,1720301451745,-500.0,0.00043835,120]
[331377918,1720301451755,-4525.42,0.00043835,120]
[331377919,1720301451766,-500.0,0.00043835,120]
[331377920,1720301451776,-867.19,0.00043835,120]
[331377921,1720301451787,-775.17108294,0.00043835,120]
[331377922,1720301451796,-500.0,0.00043835,120]
[331377923,1720301451806,-500.0,0.00043835,120]
[331377924,1720301451816,-2215.86,0.00043835,120]
[331377925,1720301451827,-500.0,0.00043835,120]
[331377926,1720301451839,-1362.4,0.00043835,120]
[331377927,1720301451849,-2109.44,0.00043835,120]
[331377928,1720301451860,-754.92,0.00043835,120]
[331377929,1720301451873,-640.075371,0.00043835,14]
[331377930,1720301451883,-640.075371,0.00043835,14]
[331377931,1720301451894,-640.075371,0.00043835,14]
[331377932,1720301451904,-640.075371,0.00043835,14]
[331377933,1720301451914,-670.7,0.00043835,120]
[331377934,1720301451925,-500.0,0.00043835,120]
[331377935,1720301451937,-640.075371,0.00043835,14]
[331377936,1720301451947,-640.075371,0.00043835,14]
[331377937,1720301451957,-640.075371,0.00043835,14]
[331377938,1720301451967,-640.075371,0.00043835,14]
[331377939,1720301451977,-500.0,0.00043835,120]
[331377940,1720301451987,-500.0,0.00043835,120]
[331377941,1720301451997,-500.0,0.00043835,120]
[331377942,1720301452007,-500.0,0.00043835,120]
[331377943,1720301452017,-500.0,0.00043835,120]
[331377944,1720301452027,-500.0,0.00043835,120]
[331377945,1720301452038,-2458.51,0.00043835,120]
[331377946,1720301452048,-500.0,0.00043835,120]
[331377947,1720301452058,-997.36,0.00043835,120]
[331377948,1720301452068,-529.17811508,0.00043835,120]
[331377949,1720301452078,-500.0,0.00043835,120]
[331377950,1720301452088,-593.67353926,0.00043835,120]
[331377951,1720301452098,-506.28611882,0.00043835,120]
[331377952,1720301452108,-151.0,0.00043835,14]
[331377953,1720301452118,-151.0,0.00043835,14]
[331377954,1720301452129,-1078.23,0.00043835,120]
[331377955,1720301452152,-151.0,0.00043835,14]
[331377956,1720301452161,-500.0,0.00043835,120]
[331377957,1720301452171,-151.0,0.00043835,14]
[331377958,1720301452181,-500.0,0.00043835,120]
[331377959,1720301452191,-500.0,0.00043835,120]
[331377960,1720301452202,-500.0,0.00043835,120]
[331377961,1720301452212,-500.0,0.00043835,120]
[331377962,1720301452222,-500.0,0.00043835,120]
[331377963,1720301452232,-2367.08,0.00043835,120]
[331377964,1720301452242,-628.71,0.00043835,120]
[331377965,1720301452252,-500.0,0.00043835,120]
[331377966,1720301452262,-500.0,0.00043835,120]
[331377967,1720301452272,-500.0,0.00043835,120]
[331377968,1720301452282,-500.0,0.00043835,120]
[331377969,1720301452292,-500.0,0.00043835,120]
[331377970,1720301452302,-500.0,0.00043835,120]
[331377971,1720301452312,-544.1989218,0.00043835,120]
[331377972,1720301452322,-1423.84,0.00043835,120]
[331377973,1720301452332,-500.0,0.00043835,120]
[331377974,1720301452342,-502.07410763,0.00043835,120]
[331377975,1720301452352,-473.67790744,0.00043835,120]
[331377976,1720301452363,-500.0,0.00043835,120]
[331377977,1720301452372,-1178.66,0.00043835,120]
[331377978,1720301452382,-500.0,0.00043835,120]
[331377979,1720301452392,-500.0,0.00043835,120]
[331377980,1720301452407,-1209.16,0.00043835,120]
[331377981,1720301452417,-527.51,0.00043835,120]
[331377982,1720301452427,-500.0,0.00043835,120]
[331377983,1720301452438,-500.0,0.00043835,120]
[331377984,1720301452447,-500.0,0.00043835,120]
[331377985,1720301452457,-753.9,0.00043835,120]
[331377986,1720301452467,-529.95,0.00043835,120]
[331377987,1720301452479,-500.0,0.00043835,120]
[331377988,1720301452488,-500.0,0.00043835,120]
[331377989,1720301452498,-500.0,0.00043835,120]
[331377990,1720301452508,-500.0,0.00043835,120]
[331377991,1720301452519,-500.0,0.00043835,120]
[331377992,1720301452529,-500.0,0.00043835,120]
[331377993,1720301452539,-500.0,0.00043835,120]
[331377994,1720301452551,-1000.0,0.00043835,120]
[331377995,1720301452562,-500.0,0.00043835,120]
[331377996,1720301452573,-151.0,0.00043835,14]
[331377997,1720301452584,-500.0,0.00043835,120]
[331377998,1720301452594,-151.0,0.00043835,14]
[331377999,1720301452604,-500.0,0.00043835,120]
[331378000,1720301452615,-151.0,0.00043835,14]
[331378001,1720301452625,-500.0,0.00043835,120]
[331378002,1720301452636,-151.0,0.00043835,14]
[331378003,1720301452650,-567.43646285,0.00043835,7]
[331378004,1720301452662,-500.0,0.00043835,120]
[331378005,1720301452672,-500.0,0.00043835,120]
[331378006,1720301452683,-835.52,0.00043835,120]
[331378007,1720301452692,-500.0,0.00043835,120]
[331378008,1720301452702,-500.0,0.00043835,120]
[331378009,1720301452712,-648.93802281,0.00043835,120]
[331378010,1720301452724,-500.0,0.00043835,120]
[331378011,1720301452734,-506.08957986,0.00043835,120]
[331378012,1720301452744,-501.93089826,0.00043835,120]
[331378013,1720301452754,-500.0,0.00043835,120]
[331378014,1720301452763,-500.0,0.00043835,120]
[331378015,1720301452773,-500.0,0.00043835,120]
[331378016,1720301452783,-500.0,0.00043835,120]
[331378017,1720301452793,-500.0,0.00043835,120]
[331378018,1720301452803,-508.45396723,0.00043835,25]
[331378019,1720301452813,-500.0,0.00043835,120]
[331378020,1720301452823,-151.0,0.00043835,14]
[331378021,1720301452833,-151.0,0.00043835,14]
[331378022,1720301452843,-151.0,0.00043835,14]
[331378023,1720301452853,-500.0,0.00043835,120]
[331378024,1720301452863,-151.0,0.00043835,14]
[331378025,1720301452873,-3959.45,0.00043835,120]
[331378026,1720301452883,-500.0,0.00043835,120]
[331378027,1720301452892,-500.0,0.00043835,120]
[331378028,1720301452904,-151.0,0.00043835,14]
[331378029,1720301452915,-215.552401,0.00043835,14]
[331378030,1720301452925,-551.3970693,0.00043835,120]
[331378031,1720301452936,-500.0,0.00043835,120]
[331378032,1720301452946,-500.0,0.00043835,120]
[331378033,1720301452956,-500.0,0.00043835,120]
[331378034,1720301452966,-1295.63,0.00043835,120]
[331378035,1720301452976,-500.0,0.00043835,120]
[331378036,1720301452986,-500.0,0.00043835,120]
[331378037,1720301452997,-500.0,0.00043835,120]
[331378038,1720301453008,-500.0,0.00043835,120]
[331378039,1720301453019,-500.0,0.00043835,120]
[331378040,1720301453029,-1348.78,0.00043835,120]
[331378041,1720301453038,-500.0,0.00043835,120]
[331378042,1720301453049,-278.78585077,0.00043835,120]
[331378043,1720301453059,-500.0,0.00043835,120]
[331378044,1720301453069,-500.0,0.00043835,120]
[331378045,1720301453078,-500.0,0.00043835,120]
[331378046,1720301453088,-500.0,0.00043835,120]
[331378047,1720301453098,-500.0,0.00043835,30]
[331378048,1720301453108,-500.0,0.00043835,120]
[331378049,1720301453117,-500.0,0.00043835,120]
[331378050,1720301453126,-500.0,0.00043835,120]
[331378051,1720301453135,-1146.78,0.00043835,120]
[331378052,1720301453145,-500.0,0.00043835,120]
[331378053,1720301453154,-407.05237673,0.00043835,120]
[331378054,1720301453164,-500.0,0.00043835,120]
[331378055,1720301453173,-500.0,0.00043835,14]
[331378056,1720301453183,-1715.88,0.00043835,120]
[331378057,1720301453193,-500.0,0.00043835,120]
[331378058,1720301453202,-992.44,0.00043835,120]
[331378059,1720301453211,-1383.07,0.00043835,120]
[331378060,1720301453221,-500.0,0.00043835,120]
[331378061,1720301453230,-500.0,0.00043835,120]
[331378062,1720301453239,-500.0,0.00043835,120]
[331378063,1720301453249,-636.7793891,0.00043835,120]
[331378064,1720301453259,-500.0,0.00043835,120]
[331378065,1720301453268,-787.51,0.00043835,120]
[331378066,1720301453277,-699.36,0.00043835,120]
[331378067,1720301453287,-500.0,0.00043835,120]
[331378068,1720301453296,-500.0,0.00043835,120]
[331378069,1720301453306,-500.0,0.00043835,120]
[331378070,1720301453317,-500.0,0.00043835,120]
[331378071,1720301453327,-500.0,0.00043835,120]
[331378072,1720301453337,-1452.41,0.00043835,120]
[331378073,1720301453347,-500.0,0.00043835,120]
[331378074,1720301453358,-500.0,0.00043835,120]
[331378075,1720301453368,-2115.2,0.00043835,120]
[331378076,1720301453378,-500.0,0.00043835,120]
[331378077,1720301453387,-24456.21,0.00043835,120]
[331378078,1720301453398,-500.0,0.00043835,120]
[331378079,1720301453410,-500.0,0.00043835,120]
[331378080,1720301453420,-500.0,0.00043835,120]
[331378081,1720301453430,-500.0,0.00043835,120]
[331378082,1720301453440,-158.356651,0.00043835,14]
[331378083,1720301453450,-158.356651,0.00043835,14]
[331378084,1720301453459,-500.0,0.00043835,120]
[331378085,1720301453470,-158.356651,0.00043835,14]
[331378086,1720301453480,-158.356651,0.00043835,14]
[331378087,1720301453490,-500.0,0.00043835,120]
[331378088,1720301453500,-500.0,0.00043835,120]
[331378089,1720301453510,-158.356651,0.00043835,14]
[331378090,1720301453521,-158.356651,0.00043835,14]
[331378091,1720301453530,-500.0,0.00043835,120]
[331378092,1720301453540,-158.356651,0.00043835,14]
[331378093,1720301453549,-158.356651,0.00043835,14]
[331378094,1720301453559,-500.0,0.00043835,120]
[331378095,1720301453568,-500.0,0.00043835,120]
[331378096,1720301453577,-500.0,0.00043835,120]
[331378097,1720301453587,-414.27984714,0.00043835,120]
[331378098,1720301453597,-500.0,0.00043835,120]
[331378099,1720301453607,-500.0,0.00043835,120]
[331378100,1720301453616,-500.0,0.00043835,120]
[331378101,1720301453626,-500.0,0.00043835,120]
[331378102,1720301453635,-500.0,0.00043835,120]
[331378103,1720301453644,-963.74,0.00043835,120]
[331378104,1720301453653,-718.03,0.00043835,120]
[331378105,1720301453664,-500.0,0.00043835,120]
[331378106,1720301453673,-500.0,0.00043835,120]
[331378107,1720301453683,-2724.5,0.00043835,120]
[331378108,1720301453692,-500.0,0.00043835,120]
[331378109,1720301453702,-1031.67,0.00043835,120]
[331378110,1720301453712,-2655.77,0.00043835,120]
[331378111,1720301453726,-501.28803572,0.00043835,120]
[331378112,1720301453736,-597.9,0.00043835,120]
[331378113,1720301453746,-230.28901,0.00043835,14]
[331378114,1720301453756,-230.28901,0.00043835,14]
[331378115,1720301453765,-230.28901,0.00043835,14]
[331378116,1720301453775,-230.28901,0.00043835,14]
[331378117,1720301453784,-1723.76,0.00043835,120]
[331378118,1720301453794,-500.0,0.00043835,120]
[331378119,1720301453803,-500.0,0.00043835,120]
[331378120,1720301453813,-500.0,0.00043835,120]
[331378121,1720301453823,-500.0,0.00043835,7]
[331378122,1720301453832,-500.0,0.00043835,120]
[331378123,1720301453843,-230.28901,0.00043835,14]
[331378124,1720301453852,-230.28901,0.00043835,14]
[331378125,1720301453862,-230.28901,0.00043835,14]
[331378126,1720301453871,-500.0,0.00043835,120]
[331378127,1720301453881,-230.28901,0.00043835,14]
[331378128,1720301453890,-344.75700334,0.00043835,120]
[331378129,1720301453901,-1568.44,0.00043835,120]
[331378130,1720301453911,-151.0,0.00043835,14]
[331378131,1720301453920,-500.0,0.00043835,120]
[331378132,1720301453930,-557.76156882,0.00043835,120]
[331378133,1720301453940,-151.0,0.00043835,14]
[331378134,1720301453949,-1329.56,0.00043835,120]
[331378135,1720301453959,-565.24,0.00043835,120]
[331378136,1720301453969,-151.0,0.00043835,14]
[331378137,1720301454099,-151.0,0.00043835,14]
[331378138,1720301454109,-500.0,0.00043835,120]
[331378139,1720301454119,-500.0,0.00043835,120]
[331378140,1720301454129,-893.86,0.00043835,120]
[331378141,1720301454139,-500.0,0.00043835,120]
[331378142,1720301454148,-500.0,0.00043835,120]
[331378143,1720301454158,-500.0,0.00043835,120]
[331378144,1720301454168,-510.37032324,0.00043835,120]
[331378145,1720301454178,-500.0,0.00043835,120]
[331378146,1720301454188,-186.98522794,0.00043835,120]
[331378147,1720301454198,-500.0,0.00043835,120]
[331378148,1720301454207,-1680.1,0.00043835,120]
[331378149,1720301454218,-500.0,0.00043835,120]
[331378150,1720301454227,-505.01,0.00043835,120]
[331378151,1720301454237,-5641.17,0.00043835,120]
[331378152,1720301454247,-500.62870715,0.00043835,120]
[331378153,1720301454257,-151.0,0.00043835,14]
[331378154,1720301454266,-500.0,0.00043835,120]
[331378155,1720301454276,-151.0,0.00043835,14]
[331378156,1720301454286,-151.0,0.00043835,14]
[331378157,1720301454296,-544.3,0.00043835,120]
[331378158,1720301454305,-500.0,0.00043835,120]
[331378159,1720301454315,-502.82,0.00043835,120]
[331378160,1720301454325,-500.0,0.00043835,120]
[331378161,1720301454335,-500.0,0.00043835,120]
[331378162,1720301454344,-500.0,0.00043835,20]
[331378163,1720301454354,-1078.09,0.00043835,120]
[331378164,1720301454363,-500.0,0.00043835,120]
[331378165,1720301454373,-511.75449694,0.00043835,120]
[331378166,1720301454382,-151.0,0.00043835,14]
[331378167,1720301454393,-1046.19,0.00043835,120]
[331378168,1720301454407,-151.0,0.00043835,14]
[331378169,1720301454417,-990.67,0.00043835,120]
[331378170,1720301454430,-151.0,0.00043835,14]
[331378171,1720301454441,-15769.26,0.00043835,120]
[331378172,1720301454451,-151.0,0.00043835,14]
[331378173,1720301454460,-556.74,0.00043835,120]
[331378174,1720301454470,-151.0,0.00043835,14]
[331378175,1720301454481,-151.0,0.00043835,14]
[331378176,1720301454491,-151.0,0.00043835,14]
[331378177,1720301454500,-927.03,0.00043835,120]
[331378178,1720301454510,-151.0,0.00043835,14]
[331378179,1720301454521,-500.0,0.00043835,120]
[331378180,1720301454531,-752.14,0.00043835,120]
[331378181,1720301454541,-500.0,0.00043835,120]
[331378182,1720301454550,-151.0,0.00043835,14]
[331378183,1720301454560,-500.0,0.00043835,120]
[331378184,1720301454570,-151.0,0.00043835,14]
[331378185,1720301454579,-158.543105,0.00043835,14]
[331378186,1720301454589,-500.0,0.00043835,120]
[331378187,1720301454599,-2868.48,0.00043835,120]
[331378188,1720301454609,-500.0,0.00043835,120]
[331378189,1720301454619,-500.0,0.00043835,120]
[331378190,1720301454629,-151.0,0.00043835,14]
[331378191,1720301454639,-500.0,0.00043835,120]
[331378192,1720301454648,-500.0,0.00043835,2]
[331378193,1720301454660,-500.0,0.00043835,120]
[331378194,1720301454670,-544.31786352,0.00043835,120]
[331378195,1720301454679,-447.812953,0.00043835,14]
[331378196,1720301454689,-500.0,0.00043835,120]
[331378197,1720301454699,-447.812953,0.00043835,14]
[331378198,1720301454708,-447.812953,0.00043835,14]
[331378199,1720301454717,-515.94,0.00043835,120]
[331378200,1720301454728,-447.812953,0.00043835,14]
[331378201,1720301454737,-500.0,0.00043835,120]
[331378202,1720301454747,-500.0,0.00043835,120]
[331378203,1720301454756,-500.0,0.00043835,120]
[331378204,1720301454766,-151.0,0.00043835,14]
[331378205,1720301454775,-151.0,0.00043835,14]
[331378206,1720301454786,-512.33511608,0.00043835,120]
[331378207,1720301454795,-500.0,0.00043835,120]
[331378208,1720301454807,-237.30578159,0.00043835,120]
[331378209,1720301454816,-500.0,0.00043835,120]
[331378210,1720301454826,-447.812953,0.00043835,14]
[331378211,1720301454835,-447.812953,0.00043835,14]
[331378212,1720301454845,-447.812953,0.00043835,14]
[331378213,1720301454855,-447.812953,0.00043835,14]
[331378214,1720301454865,-660.86,0.00043835,120]
[331378215,1720301454875,-1985.98,0.00043835,120]
[331378216,1720301454884,-200.0,0.00043835,7]
[331378217,1720301454894,-500.0,0.00043835,120]
[331378218,1720301454904,-2289.17,0.00043835,120]
[331378219,1720301454914,-500.0,0.00043835,120]
[331378220,1720301454923,-16470.73,0.00043835,120]
[331378221,1720301454933,-500.0,0.00043835,120]
[331378222,1720301454943,-1450.38,0.00043835,120]
[331378223,1720301454953,-500.0,0.00043835,120]
[331378224,1720301454963,-500.0,0.00043835,120]
[331378225,1720301454973,-28669.06,0.00043835,120]
[331378226,1720301454982,-500.0,0.00043835,120]
[331378227,1720301454992,-500.0,0.00043835,120]
[331378228,1720301455001,-500.0,0.00043835,120]
[331378229,1720301455011,-500.0,0.00043835,120]
[331378230,1720301455020,-548.86,0.00043835,120]
[331378231,1720301455030,-500.0,0.00043835,120]
[331378232,1720301455041,-500.0,0.00043835,120]
[331378233,1720301455050,-516.25911458,0.00043835,2]
[331378234,1720301455060,-500.0,0.00043835,120]
[331378235,1720301455070,-439.92495929,0.00043835,120]
[331378236,1720301455080,-6903.57,0.00043835,2]
[331378237,1720301455090,-6903.57,0.00043835,2]
[331378238,1720301455100,-6903.57,0.00043835,2]
[331378239,1720301455110,-6903.57,0.00043835,2]
[331378240,1720301455120,-500.0,0.00043835,120]
[331378241,1720301455129,-500.0,0.00043835,120]
[331378242,1720301455139,-500.0,0.00043835,120]
[331378243,1720301455148,-6903.57,0.00043835,2]
[331378244,1720301455158,-6903.57,0.00043835,2]
[331378245,1720301455167,-6903.57,0.00043835,2]
[331378246,1720301455177,-6903.57,0.00043835,2]
[331378247,1720301455186,-6903.57,0.00043835,2]
[331378248,1720301455195,-6903.57,0.00043835,2]
[331378249,1720301455205,-6903.57,0.00043835,2]
[331378250,1720301455215,-500.0,0.00043835,120]
[331378251,1720301455224,-6903.57,0.00043835,2]
[331378252,1720301455234,-1202.0173241,0.00043835,2]
[331378253,1720301455276,-3155.89549134,0.00043835,2]
[331378254,1720301455288,-464.24405252,0.00043835,2]
[331378255,1720301455301,-721.219865,0.00043835,2]
[331378256,1720301455314,-1360.19326704,0.00043835,2]
[331378257,1720301455324,-500.0,0.00043835,120]
[331378258,1720301455334,-6903.57,0.00043835,2]
[331378259,1720301455343,-6903.57,0.00043835,2]
[331378260,1720301455353,-6903.57,0.00043835,2]
[331378261,1720301455363,-6903.57,0.00043835,2]
[331378262,1720301455372,-6903.57,0.00043835,2]
[331378263,1720301455383,-6903.57,0.00043835,2]
[331378264,1720301455401,-6903.57,0.00043835,2]
[331378265,1720301455411,-6903.57,0.00043835,2]
[331378266,1720301455420,-2375.21,0.00043835,120]
[331378267,1720301455432,-6903.57,0.00043835,2]
[331378268,1720301455444,-6903.57,0.00043835,2]
[331378269,1720301455459,-500.0,0.00043835,120]
[331378270,1720301455470,-500.0,0.00043835,7]
[331378271,1720301455481,-647.16,0.00043835,120]
[331378272,1720301455491,-647.16,0.00043835,120]
[331378273,1720301455501,-4820.58,0.00043835,120]
[331378274,1720301455511,-647.16,0.00043835,120]
[331378275,1720301455520,-647.16,0.00043835,120]
[331378276,1720301455530,-647.16,0.00043835,120]
[331378277,1720301455540,-647.16,0.00043835,120]
[331378278,1720301455550,-6903.60865664,0.00043835,2]
[331378279,1720301455560,-647.16,0.00043835,120]
[331378280,1720301455569,-647.16,0.00043835,120]
[331378281,1720301455580,-1906.12,0.00043835,120]
[331378282,1720301455589,-500.0,0.00043835,120]
[331378283,1720301455599,-2316.49421362,0.00043835,120]
[331378284,1720301455643,-6064.68578638,0.00043835,120]
[331378285,1720301455653,-647.16,0.00043835,120]
[331378286,1720301455663,-647.16,0.00043835,120]
[331378287,1720301455672,-647.16,0.00043835,120]
[331378288,1720301455682,-647.16,0.00043835,120]
[331378289,1720301455692,-500.0,0.00043835,120]
[331378290,1720301455702,-647.16,0.00043835,120]
[331378291,1720301455711,-647.16,0.00043835,120]
[331378292,1720301455724,-500.0,0.00043835,120]
[331378293,1720301455734,-500.0,0.00043835,120]
[331378294,1720301455744,-1000.0,0.00043835,90]
[331378295,1720301455753,-500.0,0.00043835,120]
[331378296,1720301455763,-939.0,0.00043835,120]
[331378297,1720301455773,-500.0,0.00043835,120]
[331378298,1720301455782,-41.83050444,0.00043835,120]